bitfinex-derivatives/quotes_BTCF0:USTF0_20251206
["timestamp","ask_amount","ask_price","bid_price","bid_amount"]
[1764986270725,0.4577535,89321.0,89320.0,0.06429]
[1764986271528,0.4577535,89321.0,89320.0,0.008]
[1764986272937,0.0111947,89312.0,89310.0,0.05605]
[1764986273232,8.656e-05,89311.0,89310.0,0.3436549]
[1764986274029,8.656e-05,89311.0,89310.0,0.3446549]
[1764986274232,8.656e-05,89311.0,89310.0,0.3526549]
[1764986274923,8.656e-05,89311.0,89310.0,0.3516549]
[1764986276229,8.656e-05,89311.0,89310.0,0.3436549]
[1764986276436,0.00108656,89311.0,89310.0,0.3436549]
[1764986276837,8.656e-05,89311.0,89310.0,0.3436549]
[1764986277139,0.00208656,89311.0,89310.0,0.3436549]
[1764986283740,8.656e-05,89311.0,89310.0,0.3436549]
[1764986283948,0.00208656,89311.0,89310.0,0.3436549]
[1764986285851,0.2524079,89329.0,89328.0,0.07168]
[1764986285852,0.0671104,89329.0,89328.0,0.07168]
[1764986286048,0.21090738,89329.0,89328.0,0.07168]
[1764986286252,0.1871104,89329.0,89328.0,0.07168]
[1764986286442,0.1997232,89329.0,89328.0,0.07168]
[1764986286641,0.1759179,89329.0,89328.0,0.07168]
[1764986287350,0.20473153,89329.0,89328.0,0.07168]
[1764986287741,0.05732153,89329.0,89328.0,0.44168]
[1764986287949,0.0051679,89329.0,89328.0,0.44168]
[1764986288349,0.15198,89349.0,89348.0,0.05494]
[1764986288652,0.57460029,89349.0,89348.0,0.05494]
[1764986290139,0.57860029,89349.0,89348.0,0.05494]
[1764986290544,0.57460029,89349.0,89348.0,0.05494]
[1764986290850,0.57860029,89349.0,89348.0,0.05494]
[1764986291355,0.57960029,89349.0,89348.0,0.05494]
[1764986292247,0.05575,89342.0,89341.0,0.066131]
[1764986292451,0.48575,89342.0,89341.0,0.066131]
[1764986293756,0.48775,89342.0,89341.0,0.066131]
[1764986294656,0.51158304,89342.0,89341.0,0.066131]
[1764986296460,0.48775,89342.0,89341.0,0.066131]
[1764986296959,0.17775,89342.0,89341.0,0.066131]
[1764986298554,0.17575,89342.0,89341.0,0.066131]
[1764986298757,0.17775,89342.0,89341.0,0.066131]
[1764986299258,0.17575,89342.0,89341.0,0.066131]
[1764986299461,0.17775,89342.0,89341.0,0.066131]
[1764986306567,0.05775,89342.0,89341.0,0.066131]
[1764986308864,0.05575,89342.0,89341.0,0.066131]
[1764986309070,0.05675,89342.0,89341.0,0.066131]
[1764986309966,0.05575,89342.0,89341.0,0.066131]
[1764986310163,0.05675,89342.0,89341.0,0.066131]
[1764986314971,0.001,89342.0,89341.0,0.066131]
[1764986315168,0.02867,89342.0,89341.0,0.066131]
[1764986315363,0.05804,89342.0,89341.0,0.066131]
[1764986317577,0.08193061,89342.0,89341.0,0.066131]
[1764986319082,0.08093061,89342.0,89341.0,0.066131]
[1764986319277,0.08193061,89342.0,89341.0,0.066131]
[1764986319573,0.08193061,89342.0,89341.0,0.12651682]
[1764986328686,0.08193061,89342.0,89341.0,0.066131]
[1764986329188,0.08193061,89342.0,89341.0,0.12658513]
[1764986329980,0.08193061,89342.0,89341.0,0.066131]
[1764986329981,0.05804,89342.0,89341.0,0.066131]
[1764986330381,0.001,89342.0,89341.0,0.436131]
[1764986331788,0.0001679,89357.0,89356.0,0.05878]
[1764986331976,0.0586179,89357.0,89356.0,0.05878]
[1764986332179,0.08246365,89357.0,89356.0,0.05878]
[1764986334893,0.08446365,89357.0,89356.0,0.05878]
[1764986335783,0.45446365,89357.0,89356.0,0.05878]
[1764986341691,0.45446365,89357.0,89356.0,0.02886]
[1764986341996,0.05756,89355.0,89354.0,0.05738]
[1764986342294,0.49140575,89355.0,89354.0,0.02963]
[1764986342693,0.05756,89351.0,89350.0,0.0685698]
[1764986342897,0.49140575,89351.0,89350.0,0.0685698]
[1764986345089,0.49240575,89351.0,89350.0,0.0685698]
[1764986359220,0.49240575,89351.0,89350.0,0.0856898]
[1764986364027,0.17240575,89351.0,89350.0,0.0856898]
[1764986365428,0.46240575,89351.0,89350.0,0.0856898]
[1764986369616,0.02484575,89351.0,89350.0,0.0856898]
[1764986369929,0.0001679,89357.0,89356.0,0.0868291]
[1764986370130,0.0001679,89357.0,89356.0,0.49924912]
[1764986371226,0.02893975,89366.0,89365.0,0.069018]
[1764986371417,0.00027975,89366.0,89365.0,0.069018]
[1764986374120,0.00227975,89366.0,89365.0,0.069018]
[1764986379635,0.00227975,89366.0,89365.0,0.399018]
[1764986386543,0.05954975,89366.0,89365.0,0.399018]
[1764986388241,0.05954975,89366.0,89365.0,0.069018]
[1764986390444,0.00227975,89366.0,89365.0,0.499018]
[1764986399355,0.0001679,89374.0,89373.0,0.083947]
[1764986399653,0.0001679,89374.0,89373.0,0.48636702]
[1764986399854,0.0111842,89396.0,89395.0,0.05537]
[1764986399855,0.0690642,89396.0,89395.0,0.05537]
[1764986400054,0.4290642,89396.0,89395.0,0.05537]
[1764986401752,0.4290642,89396.0,89392.0,0.0111845]
[1764986401753,0.05788,89393.0,89392.0,0.0382445]
[1764986401954,0.42788,89393.0,89392.0,0.0382445]
[1764986403754,0.05788,89388.0,89387.0,0.00016779]
[1764986403950,0.43788,89388.0,89387.0,0.00016779]
[1764986404148,0.83788,89388.0,89387.0,0.00016779]
[1764986405049,0.83788,89388.0,89387.0,0.05553779]
[1764986405050,0.83988,89388.0,89387.0,0.05553779]
[1764986405446,0.43988,89388.0,89387.0,0.05553779]
[1764986406256,0.44088,89388.0,89387.0,0.05553779]
[1764986408559,0.44088,89388.0,89387.0,0.00016779]
[1764986409160,0.44088,89388.0,89387.0,0.00258781]
[1764986409458,0.44088,89388.0,89387.0,0.00016779]
[1764986409763,0.44088,89388.0,89387.0,0.00258781]
[1764986410359,0.44088,89388.0,89387.0,0.00016779]
[1764986410659,0.44088,89388.0,89387.0,0.00258781]
[1764986410860,0.44088,89388.0,89387.0,0.00016779]
[1764986414464,0.44088,89388.0,89387.0,0.02964781]
[1764986414663,0.44088,89388.0,89387.0,0.05795781]
[1764986415873,0.44088,89388.0,89387.0,0.05553779]
[1764986418168,0.44088,89388.0,89387.0,0.02722779]
[1764986418368,0.44088,89388.0,89387.0,0.05553779]
[1764986423367,0.44088,89388.0,89387.0,0.02722779]
[1764986424570,0.44088,89388.0,89387.0,0.05553779]
[1764986425471,0.44088,89388.0,89387.0,0.02722779]
[1764986425671,0.44088,89388.0,89387.0,0.00016779]
[1764986426274,0.45344,89388.0,89387.0,0.00016779]
[1764986430276,0.44088,89388.0,89387.0,0.02944779]
[1764986431774,0.44088,89388.0,89387.0,0.05758779]
[1764986444692,0.44088,89388.0,89387.0,0.09782585]
[1764986462792,0.44088,89388.0,89387.0,0.06968585]
[1764986462994,0.45408,89388.0,89387.0,0.00016779]
[1764986466192,0.0706,89384.0,89383.0,0.04023806]
[1764986466502,0.05804,89383.0,89382.0,0.04023806]
[1764986466691,0.46804,89383.0,89382.0,0.04023806]
[1764986467193,0.0692259,89382.0,89381.0,0.04023806]
[1764986467395,0.4592259,89382.0,89381.0,0.04023806]
[1764986467802,0.05804,89378.0,89377.0,0.09907806]
[1764986467995,0.98672,89378.0,89377.0,0.09907806]
[1764986469200,0.98772,89378.0,89377.0,0.05884]
[1764986470406,0.05804,89376.0,89375.0,0.04023806]
[1764986470592,0.05804,89376.0,89374.0,0.00016779]
[1764986470593,0.0692267,89375.0,89374.0,0.00016779]
[1764986470793,0.4492267,89375.0,89374.0,0.05900779]
[1764986471694,0.4492267,89375.0,89374.0,0.02945779]
[1764986472000,0.4512267,89375.0,89374.0,0.02945779]
[1764986472400,0.4522267,89375.0,89374.0,0.00016779]
[1764986474503,0.47598714,89375.0,89374.0,0.00016779]
[1764986477707,0.05804,89367.0,89366.0,0.0700278]
[1764986477902,0.05804,89363.0,89362.0,0.0700283]
[1764986478100,0.43804,89363.0,89362.0,0.0700283]
[1764986480513,0.43904,89363.0,89362.0,0.0700283]
[1764986484118,0.43904,89363.0,89362.0,0.0404783]
[1764986484413,0.43904,89363.0,89362.0,0.0700283]
[1764986487206,0.05804,89360.0,89359.0,0.02929]
[1764986487418,0.0692287,89359.0,89357.0,0.06032706]
[1764986487715,0.05804,89355.0,89354.0,0.02945779]
[1764986487928,0.9568,89355.0,89354.0,0.02945779]
[1764986490421,0.9568,89355.0,89354.0,0.05900779]
[1764986491222,0.9578,89355.0,89354.0,0.05900779]
[1764986493135,0.9578,89355.0,89354.0,0.00016779]
[1764986495729,0.0684502,89347.0,89346.0,0.00012784]
[1764986495927,0.4684502,89347.0,89346.0,0.00012784]
[1764986496426,0.05726,89337.0,89336.0,0.0675715]
[1764986497737,0.05726,89337.0,89336.0,0.0685715]
[1764986497936,0.05726,89337.0,89336.0,0.0755715]
[1764986500834,0.05726,89337.0,89336.0,0.0745715]
[1764986501132,0.05726,89337.0,89336.0,0.0675715]
[1764986509446,0.5613,89339.0,89338.0,0.05867]
[1764986509746,0.9713,89339.0,89338.0,0.05867]
[1764986511046,0.9723,89339.0,89338.0,0.05867]
[1764986511249,0.9723,89339.0,89338.0,0.09883771]
[1764986511946,0.05626,89336.0,89335.0,0.06937771]
[1764986512155,0.41626,89336.0,89335.0,0.02921]
[1764986512541,0.0674517,89335.0,89334.0,0.04016771]
[1764986512742,0.05626,89334.0,89333.0,0.04016771]
[1764986512943,0.05626,89332.0,89331.0,0.06937771]
[1764986513151,0.45626,89332.0,89331.0,0.09883771]
[1764986513640,0.45635397,89332.0,89331.0,0.09883771]
[1764986513840,0.45635397,89332.0,89331.0,0.04016771]
[1764986514344,0.45635397,89332.0,89331.0,0.09883771]
[1764986515250,0.45635397,89332.0,89331.0,0.05867]
[1764986517451,0.45635397,89332.0,89331.0,0.09887235]
[1764986522155,0.45635397,89332.0,89331.0,0.05867]
[1764986523147,0.45635397,89332.0,89331.0,0.09890152]
[1764986523349,0.45635397,89332.0,89331.0,0.05867]
[1764986528150,0.45635397,89332.0,89331.0,0.07608]
[1764986534755,0.45635397,89332.0,89331.0,0.0872722]
[1764986535755,0.45635397,89332.0,89331.0,0.05867]
[1764986535957,0.05871,89330.0,89329.0,0.06032706]
[1764986536155,0.05871,89330.0,89328.0,0.0001679]
[1764986536156,0.0699025,89329.0,89328.0,0.0001679]
[1764986536356,0.4899025,89329.0,89328.0,0.0001679]
[1764986537763,0.4899025,89329.0,89328.0,0.0011679]
[1764986556277,0.4899025,89329.0,89328.0,0.04145215]
[1764986557268,0.4899025,89329.0,89328.0,0.0011679]
[1764986572184,0.4899025,89329.0,89326.0,0.00027988]
[1764986572185,0.05804,89327.0,89326.0,0.00027988]
[1764986572389,0.42804,89327.0,89326.0,0.00027988]
[1764986573792,0.42804,89327.0,89326.0,0.00227988]
[1764986582011,0.60712,89327.0,89326.0,0.05943988]
[1764986582206,0.99712,89327.0,89326.0,0.05943988]
[1764986582707,0.02760397,89332.0,89331.0,0.07351]
[1764986582908,0.96668397,89332.0,89331.0,0.07593002]
[1764986583301,0.44760397,89332.0,89331.0,0.07593002]
[1764986583902,0.57917397,89332.0,89331.0,0.07593002]
[1764986584411,0.57917397,89332.0,89331.0,0.07693002]
[1764986585305,0.57917397,89332.0,89331.0,0.13730081]
[1764986585808,0.0001679,89345.0,89344.0,0.07351]
[1764986586012,0.8192479,89345.0,89344.0,0.07351]
[1764986586215,0.8467579,89345.0,89344.0,0.07351]
[1764986586510,0.8751379,89345.0,89344.0,0.07351]
[1764986587611,0.8761379,89345.0,89344.0,0.07351]
[1764986587812,0.8771379,89345.0,89344.0,0.07351]
[1764986588614,0.8761379,89345.0,89344.0,0.07351]
[1764986598511,0.8751379,89345.0,89344.0,0.07351]
[1764986598712,0.8761379,89345.0,89344.0,0.07351]
[1764986610622,0.8761379,89345.0,89344.0,0.05716]
[1764986612620,0.8751379,89345.0,89344.0,0.05716]
[1764986612825,0.8761379,89345.0,89344.0,0.05716]
[1764986613215,0.8761379,89345.0,89344.0,0.09740591]
[1764986613420,0.8751379,89345.0,89344.0,0.09740591]
[1764986613629,0.8761379,89345.0,89344.0,0.09740591]
[1764986614328,0.8761379,89345.0,89344.0,0.05716]
[1764986618919,0.05585,89340.0,89339.0,0.04029913]
[1764986619121,0.05585,89338.0,89337.0,0.04029913]
[1764986619317,0.05585,89338.0,89334.0,0.0111918]
[1764986619318,0.05585,89335.0,89334.0,0.0111918]
[1764986619522,0.43585,89335.0,89334.0,0.0399118]
[1764986620026,0.43585,89335.0,89334.0,0.0674818]
[1764986620415,0.43585,89335.0,89331.0,0.04029913]
[1764986620631,0.05585,89332.0,89331.0,0.09658913]
[1764986620822,0.39585,89332.0,89331.0,0.11334913]
[1764986622020,0.39585,89332.0,89331.0,0.02872]
[1764986622421,0.39585,89332.0,89331.0,0.05629]
[1764986623520,0.39585,89332.0,89331.0,0.05729]
[1764986624432,0.4197925,89332.0,89331.0,0.05729]
[1764986624831,0.39585,89332.0,89331.0,0.05729]
[1764986625628,0.39585,89332.0,89331.0,0.001]
[1764986626028,0.41978948,89332.0,89331.0,0.001]
[1764986630632,0.41978948,89332.0,89331.0,0.03051]
[1764986630937,0.41978948,89332.0,89331.0,0.05974]
[1764986636732,0.41978948,89332.0,89331.0,0.001]
[1764986662561,0.43250948,89332.0,89331.0,0.001]
[1764986664065,0.05642,89327.0,89326.0,0.00027988]
[1764986664357,0.98939948,89327.0,89326.0,0.00027988]
[1764986664663,1.00059218,89327.0,89326.0,0.00027988]
[1764986666063,1.00059218,89327.0,89326.0,0.00227988]
[1764986667866,1.00059218,89327.0,89326.0,0.05976988]
[1764986668661,1.00059218,89327.0,89314.0,0.06036887]
[1764986668662,0.0792737,89319.0,89314.0,0.06036887]
[1764986668862,0.05642,89299.0,89298.0,0.05749]
[1764986669169,0.60139948,89299.0,89298.0,0.0743]
[1764986669353,0.54497948,89299.0,89298.0,0.0743]
[1764986669554,0.52104,89299.0,89298.0,0.0743]
[1764986669760,0.45104,89299.0,89298.0,0.0743]
[1764986670264,0.45104,89299.0,89298.0,0.0763]
[1764986673758,0.48092,89299.0,89298.0,0.0763]
[1764986674258,0.50853,89299.0,89298.0,0.0763]
[1764986676761,0.48092,89299.0,89298.0,0.0763]
[1764986677266,0.86853,89299.0,89298.0,0.05949]
[1764986677660,0.57853,89299.0,89298.0,0.05949]
[1764986677866,0.45104,89299.0,89298.0,0.07671]
[1764986678864,0.0001679,89307.0,89298.0,0.07671]
[1764986678865,0.0001679,89307.0,89306.0,0.0668954]
[1764986679059,0.0001679,89307.0,89306.0,0.07931542]
[1764986679460,0.0001679,89307.0,89306.0,0.06931542]
[1764986680061,0.0001679,89307.0,89306.0,0.31931542]
[1764986680470,0.0001679,89307.0,89306.0,0.71931542]
[1764986680769,0.20548,89319.0,89318.0,0.0668939]
[1764986680964,0.26309,89319.0,89318.0,0.0668939]
[1764986682073,0.61309,89319.0,89318.0,0.0668939]
[1764986685772,0.31309,89319.0,89318.0,0.0668939]
[1764986687575,0.31309,89319.0,89318.0,0.0678939]
[1764986689478,0.58309,89319.0,89318.0,0.0678939]
[1764986691572,0.58309,89319.0,89318.0,0.0407539]
[1764986691780,0.6062037,89319.0,89318.0,0.001]
[1764986691978,0.05922,89311.0,89310.0,0.0001679]
[1764986692177,0.46922,89311.0,89310.0,0.0001679]
[1764986692476,0.46922,89311.0,89310.0,0.06063792]
[1764986692674,0.46922,89311.0,89310.0,0.0582179]
[1764986693279,0.47022,89311.0,89310.0,0.0001679]
[1764986693773,0.47122,89311.0,89310.0,0.0001679]
[1764986694077,0.47122,89311.0,89310.0,0.0295079]
[1764986694980,0.47122,89311.0,89310.0,0.0001679]
[1764986699382,0.47122,89311.0,89310.0,0.0582179]
[1764986699980,0.47122,89311.0,89310.0,0.0295079]
[1764986700383,0.47122,89311.0,89310.0,0.0591379]
[1764986701586,0.47122,89311.0,89310.0,0.0001679]
[1764986702276,0.47122,89311.0,89310.0,0.03130792]
[1764986702582,0.47122,89311.0,89310.0,0.06093792]
[1764986702782,0.47122,89311.0,89310.0,0.0585179]
[1764986708271,0.49501274,89311.0,89310.0,0.0585179]
[1764986709386,0.49501274,89311.0,89310.0,0.0001679]
[1764986709586,0.49501274,89311.0,89310.0,0.0288879]
[1764986710383,0.49501274,89311.0,89310.0,0.0001679]
[1764986714993,0.47122,89311.0,89310.0,0.0001679]
[1764986715894,0.49559276,89311.0,89310.0,0.0001679]
[1764986716100,0.0676364,89298.0,89297.0,0.02872]
[1764986716294,0.4976364,89298.0,89297.0,0.02872]
[1764986716893,0.4976364,89298.0,89297.0,0.05835]
[1764986717299,0.4976364,89298.0,89291.0,0.0111972]
[1764986717300,0.05644,89295.0,89289.0,0.07801818]
[1764986717498,0.48644,89295.0,89288.0,0.06026818]
[1764986718100,0.48644,89295.0,89289.0,0.06026818]
[1764986718500,0.48644,89295.0,89288.0,0.06026818]
[1764986719102,0.48644,89295.0,89287.0,0.06026818]
[1764986719299,0.48644,89295.0,89286.0,0.00028]
[1764986719300,0.48644,89295.0,89294.0,0.00110593]
[1764986719807,0.0676378,89287.0,89286.0,0.00028]
[1764986720003,0.48200891,89287.0,89286.0,0.05863]
[1764986720300,0.47081111,89287.0,89286.0,0.05863]
[1764986720709,0.47092582,89287.0,89286.0,0.05863]
[1764986721500,0.47092582,89287.0,89286.0,0.00028]
[1764986722009,0.47092582,89287.0,89286.0,0.06105002]
[1764986722400,0.26092582,89287.0,89286.0,0.06105002]
[1764986722606,0.23655471,89287.0,89286.0,0.06105002]
[1764986723411,0.23655471,89287.0,89286.0,0.06205002]
[1764986723912,0.05655471,89287.0,89286.0,0.06205002]
[1764986724111,0.43655471,89287.0,89286.0,0.06205002]
[1764986726711,0.11655471,89287.0,89286.0,0.06205002]
[1764986728106,0.05655471,89287.0,89286.0,0.06205002]
[1764986728314,0.44655471,89287.0,89286.0,0.06105002]
[1764986728507,0.44755471,89287.0,89286.0,0.00028]
[1764986729015,0.47087422,89287.0,89286.0,0.00028]
[1764986732311,0.47087422,89287.0,89261.0,0.02836]
[1764986732312,0.01121,89275.0,89261.0,0.02836]
[1764986732510,0.05572,89262.0,89261.0,0.05544]
[1764986732810,0.13572,89262.0,89261.0,0.05544]
[1764986733011,0.44572,89262.0,89261.0,0.05544]
[1764986733515,0.44572,89262.0,89261.0,0.05644]
[1764986734010,0.4569209,89262.0,89261.0,0.05644]
[1764986734203,0.4569209,89262.0,89261.0,0.02936]
[1764986734400,0.4569209,89262.0,89261.0,0.001]
[1764986734605,0.45702918,89262.0,89261.0,0.001]
[1764986735210,0.45702918,89262.0,89261.0,0.00642002]
[1764986735515,0.45702918,89262.0,89261.0,0.06044]
[1764986736406,0.45702918,89262.0,89261.0,0.05944]
[1764986736917,0.45702918,89262.0,89261.0,0.05644]
[1764986738817,0.45702918,89262.0,89261.0,0.001]
[1764986740322,0.05572,89249.0,89248.0,0.10544]
[1764986740523,0.4258408,89249.0,89248.0,0.10544]
[1764986741418,0.4258408,89249.0,89248.0,0.10644]
[1764986741620,0.4258408,89249.0,89248.0,0.056]
[1764986743212,0.4258408,89249.0,89248.0,0.054]
[1764986747620,0.45100245,89249.0,89248.0,0.0324706]
[1764986750122,0.45100697,89249.0,89248.0,0.0324706]
[1764986750625,0.45100697,89249.0,89248.0,0.0314706]
[1764986751215,0.45100697,89249.0,89248.0,0.0284706]
[1764986752712,0.0112027,89248.0,89230.0,0.01673]
[1764986752918,0.08174617,89247.0,89230.0,0.01673]
[1764986753122,0.45174617,89247.0,89230.0,0.01673]
[1764986754620,0.45174617,89247.0,89235.0,9.095e-05]
[1764986764240,0.05664,89236.0,89235.0,0.05655095]
[1764986764441,1.02194584,89236.0,89235.0,0.05655095]
[1764986765938,1.03315004,89236.0,89235.0,0.05655095]
[1764986767240,0.50190584,89236.0,89235.0,0.05655095]
[1764986767541,0.82994584,89236.0,89235.0,0.05655095]
[1764986768039,0.85730584,89236.0,89235.0,0.05655095]
[1764986769045,0.62730584,89236.0,89235.0,0.05655095]
[1764986769641,0.65658584,89236.0,89235.0,0.05655095]
[1764986771146,0.59994584,89236.0,89235.0,0.05655095]
[1764986771642,0.62730584,89236.0,89235.0,0.05655095]
[1764986772742,0.65658584,89236.0,89235.0,0.05655095]
[1764986775247,0.48658584,89236.0,89235.0,0.05655095]
[1764986775437,0.84658584,89236.0,89235.0,0.05655095]
[1764986776756,0.58658584,89236.0,89235.0,0.05655095]
[1764986776943,0.80658584,89236.0,89235.0,0.05655095]
[1764986777138,0.80658584,89236.0,89235.0,0.06775525]
[1764986777345,0.54526584,89236.0,89235.0,0.06775525]
[1764986777743,0.54526584,89236.0,89235.0,0.05655095]
[1764986778548,0.57262584,89236.0,89235.0,0.05655095]
[1764986779147,0.54526584,89236.0,89235.0,0.05655095]
[1764986779348,0.60190584,89236.0,89235.0,0.05655095]
[1764986779743,0.79190584,89236.0,89235.0,0.05655095]
[1764986781342,0.02526584,89236.0,89235.0,0.05655095]
[1764986781542,9.967e-05,89236.0,89235.0,0.05655095]
[1764986782737,9.967e-05,89236.0,89235.0,0.48655095]
[1764986784544,0.4308,89247.0,89246.0,0.0676629]
[1764986784739,0.02530129,89247.0,89246.0,0.0676629]
[1764986785452,0.05266129,89247.0,89246.0,0.0676629]
[1764986785653,0.05270638,89247.0,89246.0,0.0676629]
[1764986786144,0.05370638,89247.0,89246.0,0.0676629]
[1764986788451,0.08298638,89247.0,89246.0,0.0676629]
[1764986789457,0.02634638,89247.0,89246.0,0.4176629]
[1764986789757,0.00016799,89257.0,89256.0,0.0849016]
[1764986790850,0.00116799,89257.0,89256.0,0.0849016]
[1764986791255,0.00316799,89257.0,89256.0,0.0849016]
[1764986792254,0.03231799,89257.0,89256.0,0.0849016]
[1764986792459,0.00316799,89257.0,89256.0,0.0849016]
[1764986793360,0.06102799,89257.0,89256.0,0.0849016]
[1764986793654,0.06102799,89257.0,89256.0,0.0737]
[1764986793848,0.16102799,89257.0,89256.0,0.05646]
[1764986794046,0.43102799,89257.0,89256.0,0.05646]
[1764986794250,0.15102799,89257.0,89256.0,0.05646]
[1764986795561,0.44102799,89257.0,89256.0,0.05646]
[1764986797651,0.11102799,89257.0,89256.0,0.05646]
[1764986797855,0.11102799,89257.0,89256.0,0.07303]
[1764986798959,0.05316799,89257.0,89256.0,0.07303]
[1764986799265,0.00028,89286.0,89281.0,0.02954]
[1764986799266,0.0690584,89282.0,89281.0,0.02954]
[1764986799457,0.48786,89282.0,89281.0,0.02954]
[1764986799653,0.05786,89277.0,89276.0,0.05678]
[1764986799855,0.48786,89277.0,89276.0,0.05678]
[1764986801055,0.49286,89277.0,89276.0,0.05678]
[1764986801463,0.446199,89277.0,89268.0,0.07351809]
[1764986801665,0.05786,89269.0,89268.0,0.00016809]
[1764986801849,0.05786,89269.0,89268.0,0.08713821]
[1764986802053,0.31786,89269.0,89268.0,0.08713821]
[1764986802565,0.007,89277.0,89276.0,0.05678]
[1764986802756,0.007,89277.0,89276.0,0.05920002]
[1764986802757,0.135,89277.0,89276.0,0.05920002]
[1764986803162,0.005,89277.0,89276.0,0.05920002]
[1764986803363,0.05802809,89285.0,89284.0,0.05678]
[1764986803565,0.44802809,89285.0,89284.0,0.05920002]
[1764986804867,0.45302809,89285.0,89284.0,0.05920002]
[1764986805666,0.45502809,89285.0,89284.0,0.05920002]
[1764986809658,0.45502809,89285.0,89284.0,0.05678]
[1764986811361,0.48002834,89285.0,89284.0,0.05678]
[1764986813263,0.48002834,89285.0,89274.0,0.01657]
[1764986813264,0.42216834,89285.0,89274.0,0.0277693]
[1764986813469,0.05658,89275.0,89274.0,0.05573]
[1764986813669,0.47658,89275.0,89274.0,0.02853]
[1764986814073,0.05658,89271.0,89270.0,0.0669298]
[1764986814272,0.47658,89271.0,89270.0,0.0669298]
[1764986814973,0.00216809,89285.0,89284.0,0.05573]
[1764986815265,0.50375744,89285.0,89284.0,0.05573]
[1764986815569,0.50175744,89285.0,89284.0,0.05573]
[1764986816368,0.50375744,89285.0,89284.0,0.05573]
[1764986816964,0.16717744,89285.0,89284.0,0.05573]
[1764986817165,0.34717744,89285.0,89284.0,0.05573]
[1764986817372,0.38170744,89285.0,89284.0,0.05573]
[1764986817557,0.40875744,89285.0,89284.0,0.05573]
[1764986821466,0.05719,89275.0,89274.0,0.0561994]
[1764986821671,0.05719,89275.0,89274.0,0.0837194]
[1764986822566,0.05919,89275.0,89274.0,0.0837194]
[1764986823773,0.002,89275.0,89274.0,0.0837194]
[1764986823972,0.006,89275.0,89274.0,0.0837194]
[1764986825270,0.03105238,89275.0,89274.0,0.0837194]
[1764986826572,0.00016809,89285.0,89284.0,0.0665181]
[1764986826774,0.00016809,89285.0,89284.0,0.4765181]
[1764986826972,0.00016809,89285.0,89284.0,0.1865181]
[1764986827168,0.00028,89286.0,89284.0,0.4165181]
[1764986827369,0.1173916,89305.0,89304.0,0.05532]
[1764986827569,0.44719,89305.0,89304.0,0.07282703]
[1764986831781,0.44719,89305.0,89304.0,0.08502263]
[1764986832782,0.44719,89305.0,89304.0,0.02970263]
[1764986833186,0.44719,89305.0,89304.0,0.05750263]
[1764986833382,0.44719,89305.0,89304.0,0.08502263]
[1764986833589,0.44719,89305.0,89304.0,0.08402263]
[1764986833884,0.44719,89305.0,89304.0,0.08502263]
[1764986837487,0.44719,89305.0,89304.0,0.01850703]
[1764986838586,0.4715832,89305.0,89304.0,0.01850703]
[1764986839380,0.4715832,89305.0,89304.0,0.01750703]
[1764986839791,0.4828632,89305.0,89304.0,0.01750703]
[1764986840084,0.4828632,89305.0,89304.0,0.07282657]
[1764986840085,0.4715832,89305.0,89304.0,0.07282657]
[1764986841689,0.24616,89312.0,89311.0,0.0665147]
[1764986841690,0.30335,89312.0,89311.0,0.0665147]
[1764986841889,0.64335,89312.0,89311.0,0.08644129]
[1764986843894,0.64335,89312.0,89311.0,0.08744129]
[1764986846095,0.64335,89312.0,89311.0,0.08644129]
[1764986846296,0.64335,89312.0,89311.0,0.08744129]
[1764986848998,0.64335,89312.0,89311.0,0.08644129]
[1764986849196,0.64335,89312.0,89311.0,0.08844129]
[1764986852899,0.05719,89312.0,89311.0,0.08844129]
[1764986853092,0.00016798,89313.0,89312.0,0.05696]
[1764986853287,0.02826798,89313.0,89312.0,0.07688659]
[1764986853500,0.05695798,89313.0,89312.0,0.07688659]
[1764986855898,0.05695798,89313.0,89312.0,0.07788659]
[1764986856401,0.05695798,89313.0,89312.0,0.07888659]
[1764986856887,0.05695798,89313.0,89312.0,0.07688659]
[1764986857092,0.05695798,89313.0,89312.0,0.07888659]
[1764986857592,0.05695798,89313.0,89312.0,0.07688659]
[1764986857791,0.05695798,89313.0,89312.0,0.07788659]
[1764986859202,0.05695798,89313.0,89312.0,0.07688659]
[1764986859403,0.05695798,89313.0,89312.0,0.07788659]
[1764986862206,0.05695798,89313.0,89312.0,0.07688659]
[1764986862506,0.05695798,89313.0,89312.0,0.07788659]
[1764986865104,0.08147944,89313.0,89312.0,0.07788659]
[1764986865404,0.08147944,89313.0,89312.0,0.07688659]
[1764986865600,0.08147944,89313.0,89312.0,0.07788659]
[1764986866004,0.08147944,89313.0,89312.0,0.07688659]
[1764986866195,0.08147944,89313.0,89312.0,0.07788659]
[1764986869002,0.08147944,89313.0,89312.0,0.07688659]
[1764986869203,0.08147944,89313.0,89312.0,0.07788659]
[1764986869604,0.08147944,89313.0,89312.0,0.07688659]
[1764986869911,0.08147944,89313.0,89312.0,0.07788659]
[1764986872101,0.08147944,89313.0,89312.0,0.09467659]
[1764986872706,0.51147944,89313.0,89312.0,0.09467659]
[1764986875512,0.51147944,89313.0,89312.0,0.01850657]
[1764986875917,0.51147944,89313.0,89312.0,0.01750657]
[1764986876212,0.51147944,89313.0,89312.0,0.01850657]
[1764986877304,0.51247944,89313.0,89312.0,0.01750657]
[1764986877512,0.08247944,89313.0,89312.0,0.01750657]
[1764986877718,0.50247944,89313.0,89312.0,0.01750657]
[1764986878918,0.50147944,89313.0,89312.0,0.01750657]
[1764986879119,0.50247944,89313.0,89312.0,0.01750657]
[1764986879710,0.50147944,89313.0,89312.0,0.01750657]
[1764986880712,0.50147944,89313.0,89312.0,0.07353657]
[1764986882315,0.50147944,89313.0,89312.0,0.04537657]
[1764986882516,0.50147944,89313.0,89312.0,0.01750657]
[1764986883020,0.05719,89306.0,89305.0,0.0684655]
[1764986883217,0.08171146,89306.0,89305.0,0.08597111]
[1764986885719,0.08171146,89306.0,89305.0,0.08697111]
[1764986889120,0.05376146,89306.0,89305.0,0.08597111]
[1764986889422,0.0537581,89306.0,89305.0,0.08697111]
[1764986889611,0.0817081,89306.0,89305.0,0.08697111]
[1764986889817,0.05719,89306.0,89305.0,0.08697111]
[1764986890123,0.08170855,89306.0,89305.0,0.08697111]
[1764986890513,0.08170855,89306.0,89305.0,0.08597111]
[1764986890713,0.08170855,89306.0,89305.0,0.08797111]
[1764986890922,0.05735798,89313.0,89312.0,0.0861946]
[1764986891116,0.20187733,89313.0,89312.0,0.10612023]
[1764986892216,0.08187733,89313.0,89312.0,0.10612023]
[1764986892418,0.02940798,89313.0,89312.0,0.10612023]